[Event "*** Titled Tuesday Blitz"]
[Site "Chess.com"]
[Date "2020.11.03"]
[Round "6"]
[White "lelajavakhishvili"]
[Black "BanjoKazooieN64"]
[Result "1/2-1/2"]
[WhiteElo "2528"]
[BlackElo "2383"]
[TimeControl "180+1"]
[EndTime "11:12:10 PST"]
[Termination "Game drawn by repetition"]

1. d4 {[%clk 0:03:00.9]} 1... Nf6 {[%clk 0:02:58.4]} 2. c4 {[%clk 0:03:00.9]}
2... g6 {[%clk 0:02:58.8]} 3. Nf3 {[%clk 0:02:59.9]} 3... Bg7 {[%clk 0:02:59.1]}
4. g3 {[%clk 0:03:00.2]} 4... O-O {[%clk 0:02:59.2]} 5. Bg2 {[%clk 0:03:00.3]}
5... d6 {[%clk 0:02:59.7]} 6. O-O {[%clk 0:03:00.3]} 6... c6 {[%clk 0:03:00]} 7.
Nc3 {[%clk 0:03:00.5]} 7... Qa5 {[%clk 0:02:59.7]} 8. e4 {[%clk 0:02:58.4]} 8...
Qh5 {[%clk 0:02:58.9]} 9. Ng5 {[%clk 0:02:48.7]} 9... Qxd1 {[%clk 0:02:51.2]}
10. Rxd1 {[%clk 0:02:48.6]} 10... Na6 {[%clk 0:02:47.6]} 11. a3 {[%clk
0:02:45.8]} 11... Nd7 {[%clk 0:02:37.6]} 12. f4 {[%clk 0:02:40.3]} 12... Nb6
{[%clk 0:02:32.4]} 13. b3 {[%clk 0:02:27]} 13... c5 {[%clk 0:02:32.2]} 14. Be3
{[%clk 0:02:21.7]} 14... h6 {[%clk 0:02:27.1]} 15. Nf3 {[%clk 0:02:21.2]} 15...
Bg4 {[%clk 0:02:27.1]} 16. Rac1 {[%clk 0:02:16.8]} 16... cxd4 {[%clk 0:02:07.1]}
17. Bxd4 {[%clk 0:02:14.8]} 17... Bxd4+ {[%clk 0:02:06.7]} 18. Rxd4 {[%clk
0:02:14.7]} 18... Nc5 {[%clk 0:02:06.7]} 19. Nd2 {[%clk 0:02:08.9]} 19... a5
{[%clk 0:02:01.9]} 20. f5 {[%clk 0:01:55.3]} 20... gxf5 {[%clk 0:01:36.1]} 21.
h3 {[%clk 0:01:54.4]} 21... Ne6 {[%clk 0:01:35.8]} 22. Rd3 {[%clk 0:01:45.3]}
22... fxe4 {[%clk 0:01:36]} 23. Bxe4 {[%clk 0:01:31.7]} 23... Bh5 {[%clk
0:01:36.2]} 24. Bxb7 {[%clk 0:01:29.7]} 24... Rab8 {[%clk 0:01:30.5]} 25. Bg2
{[%clk 0:01:28.8]} 25... Nc5 {[%clk 0:01:24.2]} 26. Re3 {[%clk 0:01:28.3]} 26...
Bg6 {[%clk 0:01:16.2]} 27. Nce4 {[%clk 0:01:25.9]} 27... Nbd7 {[%clk 0:01:13.2]}
28. Rcc3 {[%clk 0:01:02.7]} 28... Rb6 {[%clk 0:01:11.5]} 29. Nxc5 {[%clk
0:01:02.2]} 29... Nxc5 {[%clk 0:01:11.5]} 30. Rxe7 {[%clk 0:01:02.2]} 30... Rfb8
{[%clk 0:01:11.5]} 31. Ree3 {[%clk 0:01:00.6]} 31... Bf5 {[%clk 0:01:03.4]} 32.
g4 {[%clk 0:00:58.6]} 32... Be6 {[%clk 0:01:03.7]} 33. Bd5 {[%clk 0:00:54.1]}
33... Kg7 {[%clk 0:00:53.6]} 34. Kg2 {[%clk 0:00:46.4]} 34... Kf6 {[%clk
0:00:39.4]} 35. Kg3 {[%clk 0:00:46.1]} 35... Ke7 {[%clk 0:00:37.5]} 36. Kh4
{[%clk 0:00:45.6]} 36... Rg8 {[%clk 0:00:31]} 37. Ne4 {[%clk 0:00:34.6]} 37...
Nxe4 {[%clk 0:00:23]} 38. Rxe4 {[%clk 0:00:34.8]} 38... Kd7 {[%clk 0:00:20.9]}
39. Rce3 {[%clk 0:00:34.6]} 39... Rg6 {[%clk 0:00:19]} 40. Bxe6+ {[%clk
0:00:31.5]} 40... fxe6 {[%clk 0:00:18.5]} 41. Kh5 {[%clk 0:00:31.1]} 41... Rf6
{[%clk 0:00:16.9]} 42. h4 {[%clk 0:00:31.2]} 42... Rb8 {[%clk 0:00:16]} 43. Rd3
{[%clk 0:00:27.5]} 43... Kc6 {[%clk 0:00:12.5]} 44. g5 {[%clk 0:00:22.4]} 44...
hxg5 {[%clk 0:00:12.3]} 45. hxg5 {[%clk 0:00:22.9]} 45... Rh8+ {[%clk
0:00:12.1]} 46. Kg4 {[%clk 0:00:23]} 46... Rg6 {[%clk 0:00:12.6]} 47. Rf3 {[%clk
0:00:21.5]} 47... Rhg8 {[%clk 0:00:12.2]} 48. Kf4 {[%clk 0:00:19.2]} 48... e5+
{[%clk 0:00:11.3]} 49. Ke3 {[%clk 0:00:18.6]} 49... Rxg5 {[%clk 0:00:11.9]} 50.
Kd3 {[%clk 0:00:18.2]} 50... Rg3 {[%clk 0:00:12.1]} 51. Ree3 {[%clk 0:00:18.5]}
51... Rg1 {[%clk 0:00:11]} 52. Rf6 {[%clk 0:00:17.4]} 52... Rd1+ {[%clk
0:00:11]} 53. Kc2 {[%clk 0:00:17.6]} 53... Rgg1 {[%clk 0:00:10.8]} 54. Rd3
{[%clk 0:00:16.8]} 54... Rxd3 {[%clk 0:00:08.8]} 55. Kxd3 {[%clk 0:00:17.2]}
55... Rg3+ {[%clk 0:00:09.1]} 56. Kc2 {[%clk 0:00:17.4]} 56... Kc5 {[%clk
0:00:09.1]} 57. b4+ {[%clk 0:00:16.3]} 57... axb4 {[%clk 0:00:08.8]} 58. axb4+
{[%clk 0:00:16.6]} 58... Kxb4 {[%clk 0:00:08.8]} 59. Rxd6 {[%clk 0:00:16.5]}
59... Kxc4 {[%clk 0:00:09.4]} 60. Kd2 {[%clk 0:00:16.6]} 60... Ra3 {[%clk
0:00:05.9]} 61. Ke2 {[%clk 0:00:16.2]} 61... Kc5 {[%clk 0:00:05.8]} 62. Rd8
{[%clk 0:00:16.3]} 62... Rh3 {[%clk 0:00:04.7]} 63. Kd2 {[%clk 0:00:15.9]} 63...
Kc4 {[%clk 0:00:05]} 64. Ke2 {[%clk 0:00:16]} 64... Kc5 {[%clk 0:00:05.1]} 65.
Rd7 {[%clk 0:00:15]} 65... Rh4 {[%clk 0:00:05.3]} 66. Ke3 {[%clk 0:00:14.9]}
66... Ra4 {[%clk 0:00:04.7]} 67. Rd8 {[%clk 0:00:14.3]} 67... Kc6 {[%clk
0:00:05.2]} 68. Rd1 {[%clk 0:00:12.3]} 68... Kc5 {[%clk 0:00:05.6]} 69. Rd8
{[%clk 0:00:12]} 69... Kc6 {[%clk 0:00:06]} 70. Rd1 {[%clk 0:00:11.8]} 70... Kc7
{[%clk 0:00:06.5]} 71. Rd2 {[%clk 0:00:11.2]} 71... Kc6 {[%clk 0:00:06.7]} 72.
Rd3 {[%clk 0:00:11.5]} 72... Rh4 {[%clk 0:00:06.3]} 73. Rd2 {[%clk 0:00:11.9]}
73... Kc5 {[%clk 0:00:05.9]} 74. Rd1 {[%clk 0:00:12.1]} 74... Rd4 {[%clk
0:00:04.9]} 75. Rxd4 {[%clk 0:00:11.8]} 75... exd4+ {[%clk 0:00:04.9]} 76. Kd3
{[%clk 0:00:12.7]} 76... Kd5 {[%clk 0:00:05.2]} 77. Kd2 {[%clk 0:00:13]} 77...
Kc4 {[%clk 0:00:06.1]} 78. Kc2 {[%clk 0:00:12.8]} 78... d3+ {[%clk 0:00:07]} 79.
Kd2 {[%clk 0:00:13.1]} 79... Kd4 {[%clk 0:00:07.9]} 80. Kd1 {[%clk 0:00:13.2]}
80... Ke3 {[%clk 0:00:08.8]} 81. Ke1 {[%clk 0:00:13.4]} 81... Ke4 {[%clk
0:00:09.7]} 82. Kd2 {[%clk 0:00:13.5]} 82... Kd4 {[%clk 0:00:10.6]} 83. Kd1
{[%clk 0:00:13.6]} 83... Kc4 {[%clk 0:00:11.5]} 84. Kd2 {[%clk 0:00:13.6]} 84...
Kd4 {[%clk 0:00:12.4]} 1/2-1/2

[Event "*** Titled Tuesday Blitz"]
[Site "Chess.com"]
[Date "2020.11.03"]
[Round "6"]
[White "seorobert1971"]
[Black "Chopper1905"]
[Result "1/2-1/2"]
[WhiteElo "2745"]
[BlackElo "2921"]
[TimeControl "180+1"]
[EndTime "11:12:16 PST"]
[Termination "Game drawn by repetition"]

1. e4 {[%clk 0:03:00.9]} 1... e5 {[%clk 0:02:58.4]} 2. Nf3 {[%clk 0:03:01.1]}
2... Nc6 {[%clk 0:02:57.8]} 3. Bc4 {[%clk 0:03:01.2]} 3... Bc5 {[%clk
0:02:57.3]} 4. c3 {[%clk 0:03:01]} 4... Nf6 {[%clk 0:02:57.6]} 5. d3 {[%clk
0:03:01.5]} 5... d6 {[%clk 0:02:57.4]} 6. a4 {[%clk 0:02:59.8]} 6... a6 {[%clk
0:02:57.6]} 7. Nbd2 {[%clk 0:02:59.3]} 7... Ba7 {[%clk 0:02:52.9]} 8. Nf1 {[%clk
0:02:57.5]} 8... Be6 {[%clk 0:02:23]} 9. Bxe6 {[%clk 0:02:52.7]} 9... fxe6
{[%clk 0:02:23.1]} 10. Be3 {[%clk 0:02:53.2]} 10... Bxe3 {[%clk 0:02:15.9]} 11.
Nxe3 {[%clk 0:02:52.8]} 11... O-O {[%clk 0:02:16.5]} 12. O-O {[%clk 0:02:52.3]}
12... Nh5 {[%clk 0:02:14]} 13. d4 {[%clk 0:02:50.1]} 13... exd4 {[%clk
0:02:08.8]} 14. cxd4 {[%clk 0:02:49.9]} 14... Nf4 {[%clk 0:02:09.4]} 15. d5
{[%clk 0:02:45.8]} 15... exd5 {[%clk 0:02:06.4]} 16. Nxd5 {[%clk 0:02:42.4]}
16... Kh8 {[%clk 0:01:45.3]} 17. Qb3 {[%clk 0:02:27.8]} 17... Rb8 {[%clk
0:01:24.4]} 18. Qe3 {[%clk 0:02:22.5]} 18... Ng6 {[%clk 0:01:18.1]} 19. b4
{[%clk 0:02:17.7]} 19... Qd7 {[%clk 0:01:13.7]} 20. b5 {[%clk 0:02:14.1]} 20...
axb5 {[%clk 0:01:13.6]} 21. axb5 {[%clk 0:02:13.8]} 21... Nce5 {[%clk
0:01:13.8]} 22. Nxe5 {[%clk 0:02:12.7]} 22... Nxe5 {[%clk 0:00:56.1]} 23. Qc3
{[%clk 0:02:10.5]} 23... c6 {[%clk 0:00:50.9]} 24. bxc6 {[%clk 0:02:10.1]} 24...
bxc6 {[%clk 0:00:51.8]} 25. Ne3 {[%clk 0:02:08.9]} 25... Ng6 {[%clk 0:00:40.5]}
26. Rad1 {[%clk 0:02:06.6]} 26... Nf4 {[%clk 0:00:38.1]} 27. Qd2 {[%clk
0:02:03.9]} 27... d5 {[%clk 0:00:18]} 28. exd5 {[%clk 0:02:03.7]} 28... cxd5
{[%clk 0:00:18.3]} 29. Nxd5 {[%clk 0:02:00.1]} 29... Rbd8 {[%clk 0:00:17.2]} 30.
Nxf4 {[%clk 0:01:51.9]} 30... Qxd2 {[%clk 0:00:18.1]} 31. Rxd2 {[%clk
0:01:51.9]} 31... Rxd2 {[%clk 0:00:19]} 32. g3 {[%clk 0:01:51.7]} 32... g5
{[%clk 0:00:19.6]} 33. Ng2 {[%clk 0:01:50.7]} 33... Kg7 {[%clk 0:00:17.9]} 34.
Ne3 {[%clk 0:01:50.6]} 34... Kg6 {[%clk 0:00:17.1]} 35. Kg2 {[%clk 0:01:49.6]}
35... h5 {[%clk 0:00:16.5]} 36. h3 {[%clk 0:01:48.8]} 36... h4 {[%clk
0:00:15.7]} 37. gxh4 {[%clk 0:01:42.5]} 37... gxh4 {[%clk 0:00:16.6]} 38. Ng4
{[%clk 0:01:42.5]} 38... Kg5 {[%clk 0:00:13.1]} 39. Ra1 {[%clk 0:01:40.5]} 39...
Rf5 {[%clk 0:00:13.2]} 40. Ra8 {[%clk 0:01:39.2]} 40... Rd6 {[%clk 0:00:10.6]}
41. Rg8+ {[%clk 0:01:35.5]} 41... Rg6 {[%clk 0:00:11.1]} 42. Rh8 {[%clk
0:01:34.8]} 42... Rg7 {[%clk 0:00:09.7]} 43. Ra8 {[%clk 0:01:31.9]} 43... Rb5
{[%clk 0:00:09.7]} 44. Rh8 {[%clk 0:01:28.7]} 44... Rb1 {[%clk 0:00:09]} 45. Rc8
{[%clk 0:01:27.5]} 45... Re7 {[%clk 0:00:08.4]} 46. Rc5+ {[%clk 0:01:27]} 46...
Kf4 {[%clk 0:00:08.3]} 47. Rc4+ {[%clk 0:01:25.7]} 47... Re4 {[%clk 0:00:08.6]}
48. Rc8 {[%clk 0:01:25.5]} 48... Ree1 {[%clk 0:00:08.4]} 49. Rf8+ {[%clk
0:01:24.6]} 49... Kg5 {[%clk 0:00:08.7]} 50. Rg8+ {[%clk 0:01:24.3]} 50... Kf5
{[%clk 0:00:08.8]} 51. Rf8+ {[%clk 0:01:20.6]} 51... Kg6 {[%clk 0:00:08.6]} 52.
Rh8 {[%clk 0:01:13.5]} 52... Rg1+ {[%clk 0:00:05.3]} 53. Kf3 {[%clk 0:01:13.3]}
53... Kg5 {[%clk 0:00:05.8]} 54. Rg8+ {[%clk 0:01:11.5]} 54... Kf5 {[%clk
0:00:05.4]} 55. Rf8+ {[%clk 0:01:08.6]} 55... Kg6 {[%clk 0:00:04.2]} 56. Rh8
{[%clk 0:01:06.9]} 56... Rb3+ {[%clk 0:00:02.7]} 57. Ne3 {[%clk 0:01:06]} 57...
Rh1 {[%clk 0:00:01.6]} 58. Rxh4 {[%clk 0:01:04.8]} 58... Kg5 {[%clk 0:00:02.1]}
59. Rh8 {[%clk 0:01:04.7]} 59... Kg6 {[%clk 0:00:02.5]} 60. Kg3 {[%clk
0:01:03.2]} 60... Rhb1 {[%clk 0:00:03.4]} 61. Rc8 {[%clk 0:01:01.9]} 61... Kg7
{[%clk 0:00:04.3]} 62. Rc6 {[%clk 0:01:01.4]} 62... Rb6 {[%clk 0:00:03.9]} 63.
Rc7+ {[%clk 0:01:00.9]} 63... Kg6 {[%clk 0:00:04.5]} 64. h4 {[%clk 0:01:00]}
64... Rg1+ {[%clk 0:00:05.1]} 65. Kf3 {[%clk 0:00:58.3]} 65... Rgb1 {[%clk
0:00:06]} 66. Rc5 {[%clk 0:00:56.1]} 66... Rf6+ {[%clk 0:00:06.3]} 67. Kg2
{[%clk 0:00:52.6]} 67... Rb2 {[%clk 0:00:07.2]} 68. Rg5+ {[%clk 0:00:51.4]}
68... Kf7 {[%clk 0:00:07.9]} 69. Ng4 {[%clk 0:00:50.2]} 69... Rf4 {[%clk
0:00:07.6]} 70. Kg3 {[%clk 0:00:50.1]} 70... Ra4 {[%clk 0:00:08.1]} 71. f3
{[%clk 0:00:49.7]} 71... Raa2 {[%clk 0:00:08.1]} 72. Rf5+ {[%clk 0:00:47.3]}
72... Kg6 {[%clk 0:00:08.2]} 73. Rf6+ {[%clk 0:00:47.2]} 73... Kg7 {[%clk
0:00:08.7]} 74. Rc6 {[%clk 0:00:43]} 74... Rg2+ {[%clk 0:00:08.2]} 75. Kf4
{[%clk 0:00:42.2]} 75... Ra4+ {[%clk 0:00:08.2]} 76. Kf5 {[%clk 0:00:42.1]}
76... Ra5+ {[%clk 0:00:08.7]} 77. Ne5 {[%clk 0:00:40.5]} 77... Rh2 {[%clk
0:00:09.1]} 78. Rg6+ {[%clk 0:00:38.3]} 78... Kf8 {[%clk 0:00:08.5]} 79. Rg4
{[%clk 0:00:34.9]} 79... Re2 {[%clk 0:00:07.2]} 80. f4 {[%clk 0:00:34.5]} 80...
Rh2 {[%clk 0:00:07.4]} 81. Kg5 {[%clk 0:00:31.9]} 81... Kg7 {[%clk 0:00:07.9]}
82. Kf5+ {[%clk 0:00:29.6]} 82... Kh7 {[%clk 0:00:08.1]} 83. Kf6 {[%clk
0:00:28.4]} 83... Ra6+ {[%clk 0:00:06.4]} 84. Kf5 {[%clk 0:00:28.4]} 84... Ra5
{[%clk 0:00:06.7]} 85. Kf6 {[%clk 0:00:24.6]} 85... Ra6+ {[%clk 0:00:07]} 86.
Kf5 {[%clk 0:00:24.5]} 86... Ra5 {[%clk 0:00:07.4]} 1/2-1/2

[Event "*** Titled Tuesday Blitz"]
[Site "Chess.com"]
[Date "2020.11.03"]
[Round "6"]
[White "Michaelson_11"]
[Black "chessmachine14"]
[Result "1/2-1/2"]
[WhiteElo "2157"]
[BlackElo "2351"]
[TimeControl "180+1"]
[EndTime "11:12:26 PST"]
[Termination "Game drawn - insufficient material"]

1. e4 {[%clk 0:03:00.9]} 1... c5 {[%clk 0:02:57.4]} 2. Nf3 {[%clk 0:03:00.9]}
2... e6 {[%clk 0:02:57.2]} 3. d4 {[%clk 0:03:01.5]} 3... cxd4 {[%clk 0:02:56.3]}
4. Nxd4 {[%clk 0:03:02.4]} 4... Nf6 {[%clk 0:02:56.4]} 5. Nc3 {[%clk 0:03:02.9]}
5... d6 {[%clk 0:02:56.8]} 6. g4 {[%clk 0:03:01.8]} 6... h6 {[%clk 0:02:54.8]}
7. Rg1 {[%clk 0:03:01.4]} 7... Nc6 {[%clk 0:02:52.2]} 8. h4 {[%clk 0:03:01.5]}
8... h5 {[%clk 0:02:52.6]} 9. gxh5 {[%clk 0:03:00.3]} 9... Nxh5 {[%clk
0:02:51.5]} 10. Bg5 {[%clk 0:02:58.3]} 10... Nf6 {[%clk 0:02:50.6]} 11. Nxc6
{[%clk 0:02:54.9]} 11... bxc6 {[%clk 0:02:50.1]} 12. e5 {[%clk 0:02:53.2]} 12...
dxe5 {[%clk 0:02:49]} 13. Qxd8+ {[%clk 0:02:52.9]} 13... Kxd8 {[%clk 0:02:48.9]}
14. O-O-O+ {[%clk 0:02:45.6]} 14... Kc7 {[%clk 0:02:48.4]} 15. Re1 {[%clk
0:02:37.8]} 15... Bd6 {[%clk 0:02:39.5]} 16. Bxf6 {[%clk 0:02:34.1]} 16... gxf6
{[%clk 0:02:39.4]} 17. Rg7 {[%clk 0:02:35]} 17... Bd7 {[%clk 0:02:18.3]} 18.
Rxf7 {[%clk 0:02:31.5]} 18... Raf8 {[%clk 0:02:18.2]} 19. Rxf8 {[%clk
0:02:27.2]} 19... Bxf8 {[%clk 0:02:18.3]} 20. Re4 {[%clk 0:01:43.9]} 20... f5
{[%clk 0:02:18.2]} 21. Rxe5 {[%clk 0:01:43.1]} 21... Rxh4 {[%clk 0:02:15.5]} 22.
Bd3 {[%clk 0:01:39.2]} 22... Rf4 {[%clk 0:02:05]} 23. Re2 {[%clk 0:01:35.8]}
23... Bg7 {[%clk 0:01:52.3]} 24. Kd2 {[%clk 0:01:22.7]} 24... e5 {[%clk
0:01:51.4]} 25. b3 {[%clk 0:01:05.7]} 25... e4 {[%clk 0:01:50.7]} 26. Bc4 {[%clk
0:01:02.7]} 26... Bd4 {[%clk 0:01:45.4]} 27. Nd1 {[%clk 0:00:58]} 27... Be8
{[%clk 0:01:37.2]} 28. c3 {[%clk 0:00:46.5]} 28... Bb6 {[%clk 0:01:33.8]} 29.
Ke1 {[%clk 0:00:30]} 29... Bh5 {[%clk 0:01:30.8]} 30. Rd2 {[%clk 0:00:28.7]}
30... Rh4 {[%clk 0:01:22.5]} 31. Ne3 {[%clk 0:00:21.8]} 31... f4 {[%clk
0:01:16.6]} 32. Nf1 {[%clk 0:00:17.3]} 32... e3 {[%clk 0:01:10.9]} 33. fxe3
{[%clk 0:00:17.7]} 33... fxe3 {[%clk 0:01:10.4]} 34. Rg2 {[%clk 0:00:18]} 34...
Rh1 {[%clk 0:01:08.5]} 35. Rg7+ {[%clk 0:00:17.8]} 35... Kd6 {[%clk 0:01:07.4]}
36. Rh7 {[%clk 0:00:17]} 36... Bf3 {[%clk 0:00:54.2]} 37. Rxh1 {[%clk
0:00:14.4]} 37... Bxh1 {[%clk 0:00:54.3]} 38. Ng3 {[%clk 0:00:14.6]} 38... Bf3
{[%clk 0:00:54.1]} 39. Be2 {[%clk 0:00:11.7]} 39... Bxe2 {[%clk 0:00:51.1]} 40.
Kxe2 {[%clk 0:00:12.6]} 40... Ke5 {[%clk 0:00:50.3]} 41. Kf3 {[%clk 0:00:12.3]}
41... a5 {[%clk 0:00:45]} 42. Ne2 {[%clk 0:00:11]} 42... Bc5 {[%clk 0:00:44.3]}
43. Nc1 {[%clk 0:00:10.9]} 43... Kd5 {[%clk 0:00:37.1]} 44. Nd3 {[%clk
0:00:11.1]} 44... Bb6 {[%clk 0:00:36.9]} 45. Nf4+ {[%clk 0:00:08.4]} 45... Ke5
{[%clk 0:00:37.1]} 46. Ng6+ {[%clk 0:00:07.8]} 46... Kf6 {[%clk 0:00:36.9]} 47.
Nf4 {[%clk 0:00:07.7]} 47... Kf5 {[%clk 0:00:37.2]} 48. Ng2 {[%clk 0:00:07.9]}
48... e2 {[%clk 0:00:31.4]} 49. Kxe2 {[%clk 0:00:07.9]} 49... Ke4 {[%clk
0:00:31.6]} 50. Kd2 {[%clk 0:00:07.8]} 50... Bd8 {[%clk 0:00:30.3]} 51. Ne1
{[%clk 0:00:06.6]} 51... Bg5+ {[%clk 0:00:30.2]} 52. Kc2 {[%clk 0:00:06.5]}
52... Be3 {[%clk 0:00:23.3]} 53. Nd3 {[%clk 0:00:06.3]} 53... Bg1 {[%clk
0:00:23.5]} 54. Nb2 {[%clk 0:00:06.3]} 54... Bf2 {[%clk 0:00:21]} 55. a4 {[%clk
0:00:06.4]} 55... Bg1 {[%clk 0:00:20.4]} 56. Nc4 {[%clk 0:00:06.6]} 56... Kd5
{[%clk 0:00:13.2]} 57. Nxa5 {[%clk 0:00:06.5]} 57... Kc5 {[%clk 0:00:13.6]} 58.
b4+ {[%clk 0:00:05.5]} 58... Kb6 {[%clk 0:00:13.3]} 59. Kb3 {[%clk 0:00:05.8]}
59... Bf2 {[%clk 0:00:12.2]} 60. Nc4+ {[%clk 0:00:05.6]} 60... Ka6 {[%clk
0:00:11.8]} 61. Ne5 {[%clk 0:00:05.6]} 61... Kb6 {[%clk 0:00:08.9]} 62. a5+
{[%clk 0:00:04.4]} 62... Kb7 {[%clk 0:00:09.3]} 63. Kc4 {[%clk 0:00:04.3]} 63...
Bg1 {[%clk 0:00:08.1]} 64. Kb3 {[%clk 0:00:04.4]} 64... Bf2 {[%clk 0:00:08]} 65.
c4 {[%clk 0:00:04.8]} 65... Bg1 {[%clk 0:00:07.6]} 66. Ka4 {[%clk 0:00:04.9]}
66... Bh2 {[%clk 0:00:07.1]} 67. b5 {[%clk 0:00:05]} 67... cxb5+ {[%clk
0:00:06.5]} 68. cxb5 {[%clk 0:00:05.1]} 68... Bxe5 {[%clk 0:00:07.1]} 69. a6+
{[%clk 0:00:04.9]} 69... Kb6 {[%clk 0:00:07.2]} 70. Kb4 {[%clk 0:00:05.6]} 70...
Bb8 {[%clk 0:00:07.4]} 71. Kc4 {[%clk 0:00:06]} 71... Bh2 {[%clk 0:00:07.3]} 72.
Kb4 {[%clk 0:00:05.8]} 72... Bg1 {[%clk 0:00:07.8]} 73. Kc4 {[%clk 0:00:05.9]}
73... Ka7 {[%clk 0:00:08.4]} 74. Kd5 {[%clk 0:00:05.9]} 74... Bb6 {[%clk
0:00:08.9]} 75. Kc6 {[%clk 0:00:05.4]} 75... Bg1 {[%clk 0:00:09.5]} 76. b6+
{[%clk 0:00:05.1]} 76... Bxb6 {[%clk 0:00:10.1]} 77. Kb5 {[%clk 0:00:05.9]}
77... Bg1 {[%clk 0:00:10.6]} 78. Kc6 {[%clk 0:00:06.3]} 78... Bb6 {[%clk
0:00:10.6]} 79. Kb5 {[%clk 0:00:06.5]} 79... Bg1 {[%clk 0:00:11.3]} 80. Kc4
{[%clk 0:00:06.8]} 80... Bb6 {[%clk 0:00:12]} 81. Kd5 {[%clk 0:00:07.1]} 81...
Bg1 {[%clk 0:00:12.9]} 82. Ke4 {[%clk 0:00:07.7]} 82... Bb6 {[%clk 0:00:13.8]}
83. Kf3 {[%clk 0:00:07.7]} 83... Bg1 {[%clk 0:00:14.7]} 84. Ke2 {[%clk
0:00:08.1]} 84... Bb6 {[%clk 0:00:15.6]} 85. Kf1 {[%clk 0:00:08.7]} 85... Bc5
{[%clk 0:00:16.5]} 86. Ke2 {[%clk 0:00:09.1]} 86... Kxa6 {[%clk 0:00:17.4]}
1/2-1/2